[Event "Titled Tuesday Blitz November 14 Late 2023"]
[White "Pourkashiyan, Atousa"]
[Black "Spichkin, Alexander"]
[WhiteFideId "12502014"]
[BlackFideId "4144074"]
[WhiteElo "2528"]
[BlackElo "2341"]
[Result "1-0"]
[Round "5"]
[TimeControl "180+1"]
[Date "2023.11.14"]
[WhiteClock "0:00:19"]
[BlackClock "0:02:04"]
[Board "92"]

1. e4 {[%clk 0:03:00]}  e5 {[%clk 0:02:58]} 2. Nf3 {[%clk 0:03:00]}  d5 {[%clk 0:02:58]} 3. Nc3 {[%clk 0:02:45]}  dxe4 {[%clk 0:02:56]} 4. Nxe4 {[%clk 0:02:44]}  f5 {[%clk 0:02:56]} 5. Nc3 {[%clk 0:02:38]}  e4 {[%clk 0:02:57]} 6. Ne5 {[%clk 0:02:27]}  Nf6 {[%clk 0:02:54]} 7. d4 {[%clk 0:02:21]}  Bd6 {[%clk 0:02:53]} 8. Bf4 {[%clk 0:02:09]}  O-O {[%clk 0:02:53]} 9. Bc4+ {[%clk 0:02:09]}  Kh8 {[%clk 0:02:53]} 10. O-O {[%clk 0:02:03]}  c6 {[%clk 0:02:51]} 11. Bg3 {[%clk 0:01:58]}  b5 {[%clk 0:02:52]} 12. Bb3 {[%clk 0:01:56]}  b4 {[%clk 0:02:50]} 13. Ne2 {[%clk 0:01:48]}  Nd5 {[%clk 0:02:48]} 14. Nf4 {[%clk 0:01:44]}  Bxe5 {[%clk 0:02:38]} 15. dxe5 {[%clk 0:01:40]}  Nxf4 {[%clk 0:02:36]} 16. Bxf4 {[%clk 0:01:36]}  Bb7 {[%clk 0:02:37]} 17. Qd6 {[%clk 0:01:27]}  Qe8 {[%clk 0:02:33]} 18. Qxb4 {[%clk 0:01:24]}  Ba6 {[%clk 0:02:32]} 19. Bc4 {[%clk 0:01:17]}  Bxc4 {[%clk 0:02:26]} 20. Qxc4 {[%clk 0:01:18]}  Nd7 {[%clk 0:02:27]} 21. Qxc6 {[%clk 0:01:16]}  Rc8 {[%clk 0:02:27]} 22. Qa4 {[%clk 0:01:16]}  Nxe5 {[%clk 0:02:27]} 23. Qxe8 {[%clk 0:01:15]}  Rfxe8 {[%clk 0:02:27]} 24. Bxe5 {[%clk 0:01:14]}  Rxe5 {[%clk 0:02:27]} 25. c3 {[%clk 0:01:12]}  Rb5 {[%clk 0:02:27]} 26. Rab1 {[%clk 0:01:10]}  Kg8 {[%clk 0:02:24]} 27. Rfd1 {[%clk 0:01:10]}  Kf7 {[%clk 0:02:23]} 28. Kf1 {[%clk 0:00:57]}  Ke6 {[%clk 0:02:22]} 29. Ke2 {[%clk 0:00:54]}  g5 {[%clk 0:02:22]} 30. Kd2 {[%clk 0:00:42]}  f4 {[%clk 0:02:20]} 31. Kc2 {[%clk 0:00:39]}  Rcb8 {[%clk 0:02:20]} 32. Rd4 {[%clk 0:00:35]}  Re5 {[%clk 0:02:18]} 33. Rbd1 {[%clk 0:00:32]}  h6 {[%clk 0:02:15]} 34. Rd6+ {[%clk 0:00:32]}  Kf5 {[%clk 0:02:16]} 35. R6d5 {[%clk 0:00:27]}  Re8 {[%clk 0:02:15]} 36. Rxe5+ {[%clk 0:00:26]}  Rxe5 {[%clk 0:02:15]} 37. c4 {[%clk 0:00:22]}  e3 {[%clk 0:02:15]} 38. fxe3 {[%clk 0:00:22]}  Rxe3 {[%clk 0:02:12]} 39. b4 {[%clk 0:00:17]}  Re2+ {[%clk 0:02:09]} 40. Rd2 {[%clk 0:00:17]}  Re4 {[%clk 0:02:05]} 41. Kc3 {[%clk 0:00:18]}  Re2 {[%clk 0:02:06]} 42. Rxe2 {[%clk 0:00:17]}  g4 {[%clk 0:02:06]} 43. c5 {[%clk 0:00:18]}  f3 {[%clk 0:02:06]} 44. gxf3 {[%clk 0:00:18]}  gxf3 {[%clk 0:02:07]} 45. Rf2 {[%clk 0:00:19]}  Kf4 {[%clk 0:02:07]} 46. Kd4 {[%clk 0:00:19]}  h5 {[%clk 0:02:04]} 47. c6 {[%clk 0:00:19]} 1-0


[Site "https://www.chess.com"]

[Event "Titled Tuesday Blitz November 14 Late 2023"]
[White "Szente Varga, Fruzsina"]
[Black "RodokininEV"]
[WhiteFideId "712264"]
[WhiteElo "2340"]
[BlackElo "2527"]
[Result "1-0"]
[Round "5"]
[TimeControl "180+1"]
[Date "2023.11.14"]
[WhiteClock "0:01:09"]
[BlackClock "0:00:18"]
[Board "94"]

1. e4 {[%clk 0:03:00]}  c5 {[%clk 0:02:59]} 2. Nf3 {[%clk 0:03:00]}  Nc6 {[%clk 0:02:59]} 3. Bb5 {[%clk 0:03:00]}  g6 {[%clk 0:02:59]} 4. O-O {[%clk 0:02:58]}  Bg7 {[%clk 0:02:58]} 5. Nc3 {[%clk 0:02:58]}  Nf6 {[%clk 0:02:58]} 6. e5 {[%clk 0:02:58]}  Ng4 {[%clk 0:02:53]} 7. Bxc6 {[%clk 0:02:58]}  dxc6 {[%clk 0:02:52]} 8. Qe2 {[%clk 0:02:58]}  Nh6 {[%clk 0:02:47]} 9. Ne4 {[%clk 0:02:51]}  b6 {[%clk 0:02:44]} 10. d3 {[%clk 0:02:50]}  Bg4 {[%clk 0:02:43]} 11. Bf4 {[%clk 0:02:48]}  Nf5 {[%clk 0:02:42]} 12. h3 {[%clk 0:02:48]}  Bxf3 {[%clk 0:02:42]} 13. Qxf3 {[%clk 0:02:48]}  Nd4 {[%clk 0:02:42]} 14. Qd1 {[%clk 0:02:49]}  O-O {[%clk 0:02:41]} 15. Qd2 {[%clk 0:02:47]}  Qd5 {[%clk 0:02:30]} 16. c4 {[%clk 0:02:27]}  Qd7 {[%clk 0:02:18]} 17. Bh6 {[%clk 0:02:19]}  Rfd8 {[%clk 0:02:07]} 18. Rad1 {[%clk 0:02:05]}  a5 {[%clk 0:01:59]} 19. Bxg7 {[%clk 0:01:29]}  Kxg7 {[%clk 0:02:00]} 20. Kh2 {[%clk 0:01:27]}  Qe6 {[%clk 0:01:35]} 21. f4 {[%clk 0:01:26]}  Rd7 {[%clk 0:01:26]} 22. Ng5 {[%clk 0:01:26]}  Qf5 {[%clk 0:01:12]} 23. g4 {[%clk 0:01:25]}  Qxg5 {[%clk 0:00:59]} 24. fxg5 {[%clk 0:01:25]}  e6 {[%clk 0:00:59]} 25. Qf4 {[%clk 0:01:23]}  Rad8 {[%clk 0:00:57]} 26. h4 {[%clk 0:01:20]}  Ne2 {[%clk 0:00:34]} 27. Qf6+ {[%clk 0:01:19]}  Kg8 {[%clk 0:00:33]} 28. h5 {[%clk 0:01:18]}  Kf8 {[%clk 0:00:24]} 29. Qh8+ {[%clk 0:01:09]}  Ke7 {[%clk 0:00:24]} 30. Rxf7+ {[%clk 0:01:09]}  Kxf7 {[%clk 0:00:21]} 31. Rf1+ {[%clk 0:01:09]}  Ke7 {[%clk 0:00:20]} 32. Qf6+ {[%clk 0:01:09]}  Ke8 {[%clk 0:00:18]} 33. Qf8# {[%clk 0:01:09]} 1-0


[Site "https://www.chess.com"]

[Event "Titled Tuesday Blitz November 14 Late 2023"]
[White "Jovic, Stanoje"]
[Black "Kohler, Aran"]
[WhiteFideId "905020"]
[BlackFideId "1002856"]
[WhiteElo "2525"]
[BlackElo "2292"]
[Result "1-0"]
[Round "5"]
[TimeControl "180+1"]
[Date "2023.11.14"]
[WhiteClock "0:02:28"]
[BlackClock "0:01:33"]
[Board "95"]

1. c4 {[%clk 0:03:00]}  e5 {[%clk 0:02:58]} 2. g3 {[%clk 0:03:01]}  Nf6 {[%clk 0:02:57]} 3. Bg2 {[%clk 0:03:00]}  Nc6 {[%clk 0:02:57]} 4. Nf3 {[%clk 0:03:00]}  Bc5 {[%clk 0:02:40]} 5. O-O {[%clk 0:03:00]}  d6 {[%clk 0:02:40]} 6. e3 {[%clk 0:03:00]}  e4 {[%clk 0:02:28]} 7. Ng5 {[%clk 0:02:55]}  Bf5 {[%clk 0:02:28]} 8. Nc3 {[%clk 0:02:50]}  Qe7 {[%clk 0:02:28]} 9. Nd5 {[%clk 0:02:44]}  Nxd5 {[%clk 0:02:24]} 10. cxd5 {[%clk 0:02:44]}  Qxg5 {[%clk 0:02:24]} 11. dxc6 {[%clk 0:02:42]}  bxc6 {[%clk 0:02:24]} 12. Qa4 {[%clk 0:02:39]}  Qe7 {[%clk 0:02:03]} 13. Qxc6+ {[%clk 0:02:36]}  Kd8 {[%clk 0:01:49]} 14. Qxa8+ {[%clk 0:02:34]}  Bc8 {[%clk 0:01:33]} 15. Bh3 {[%clk 0:02:28]} 1-0


[Site "https://www.chess.com"]

[Event "Titled Tuesday Blitz November 14 Late 2023"]
[White "Rizzo, Tobias"]
[Black "Lock, Gavin R"]
[WhiteFideId "30942691"]
[BlackFideId "408646"]
[WhiteElo "2518"]
[BlackElo "2255"]
[Result "0-1"]
[Round "5"]
[TimeControl "180+1"]
[Date "2023.11.14"]
[WhiteClock "0:00:00"]
[BlackClock "0:00:08"]
[Board "96"]

1. e4 {[%clk 0:03:00]}  c6 {[%clk 0:03:00]} 2. d4 {[%clk 0:02:58]}  d5 {[%clk 0:03:00]} 3. e5 {[%clk 0:02:59]}  c5 {[%clk 0:03:00]} 4. dxc5 {[%clk 0:02:59]}  e6 {[%clk 0:03:01]} 5. a3 {[%clk 0:02:56]}  Bxc5 {[%clk 0:03:00]} 6. Qg4 {[%clk 0:02:57]}  Ne7 {[%clk 0:02:58]} 7. Bd3 {[%clk 0:02:49]}  Nbc6 {[%clk 0:02:18]} 8. Nf3 {[%clk 0:02:49]}  Ng6 {[%clk 0:01:49]} 9. b4 {[%clk 0:02:36]}  Bb6 {[%clk 0:01:45]} 10. Bb2 {[%clk 0:02:34]}  Qc7 {[%clk 0:01:40]} 11. Qg3 {[%clk 0:02:32]}  a5 {[%clk 0:01:30]} 12. b5 {[%clk 0:02:30]}  Nce7 {[%clk 0:01:31]} 13. Nbd2 {[%clk 0:02:22]}  a4 {[%clk 0:01:27]} 14. h4 {[%clk 0:02:22]}  h5 {[%clk 0:01:16]} 15. O-O {[%clk 0:02:18]}  Nf5 {[%clk 0:00:56]} 16. Bxf5 {[%clk 0:02:15]}  exf5 {[%clk 0:00:57]} 17. Rac1 {[%clk 0:01:44]}  f4 {[%clk 0:00:54]} 18. Qg5 {[%clk 0:01:44]}  Be6 {[%clk 0:00:54]} 19. Nd4 {[%clk 0:01:22]}  Qd7 {[%clk 0:00:47]} 20. c4 {[%clk 0:01:07]}  Bd8 {[%clk 0:00:42]} 21. Nxe6 {[%clk 0:00:44]}  Bxg5 {[%clk 0:00:36]} 22. Nxg5 {[%clk 0:00:45]}  O-O {[%clk 0:00:27]} 23. Rfe1 {[%clk 0:00:38]}  Nxh4 {[%clk 0:00:18]} 24. cxd5 {[%clk 0:00:12]}  Qg4 {[%clk 0:00:17]} 25. g3 {[%clk 0:00:07]}  fxg3 {[%clk 0:00:17]} 26. f4 {[%clk 0:00:04]}  Nf5 {[%clk 0:00:11]} 27. Nde4 {[%clk 0:00:02]}  Qxf4 {[%clk 0:00:11]} 28. Rf1 {[%clk 0:00:01]}  Qg4 {[%clk 0:00:11]} 29. Rc2 {[%clk 0:00:01]}  Ne3 {[%clk 0:00:10]} 30. Re2 {[%clk 0:00:01]}  Nxf1 {[%clk 0:00:11]} 31. Kxf1 {[%clk 0:00:02]}  Rad8 {[%clk 0:00:11]} 32. Rg2 {[%clk 0:00:02]}  Rxd5 {[%clk 0:00:10]} 33. Rxg3 {[%clk 0:00:03]}  Rd1+ {[%clk 0:00:11]} 34. Kf2 {[%clk 0:00:03]}  Qf5+ {[%clk 0:00:11]} 35. Rf3 {[%clk 0:00:03]}  Qg4 {[%clk 0:00:11]} 36. Rg3 {[%clk 0:00:04]}  Qc8 {[%clk 0:00:10]} 37. Nf6+ {[%clk 0:00:02]}  Kh8 {[%clk 0:00:09]} 38. Rh3 {[%clk 0:00:03]}  Qc2+ {[%clk 0:00:09]} 39. Ke3 {[%clk 0:00:01]}  Rd3+ {[%clk 0:00:10]} 40. Ke4 {[%clk 0:00:01]}  Rxh3+ {[%clk 0:00:11]} 41. Kf4 {[%clk 0:00:01]}  Rb3 {[%clk 0:00:10]} 42. e6 {[%clk 0:00:00]}  Qd2+ {[%clk 0:00:08]} 0-1


[Site "https://www.chess.com"]

[Event "Titled Tuesday Blitz November 14 Late 2023"]
[White "Statham_l3"]
[Black "Rodriguez Dominguez, Melissa"]
[BlackFideId "3517560"]
[WhiteElo "2516"]
[BlackElo "2235"]
[Result "1-0"]
[Round "5"]
[TimeControl "180+1"]
[Date "2023.11.14"]
[WhiteClock "0:00:05"]
[BlackClock "0:00:09"]
[Board "98"]

1. e4 {[%clk 0:03:00]}  c5 {[%clk 0:02:54]} 2. Nf3 {[%clk 0:03:00]}  e6 {[%clk 0:02:53]} 3. d4 {[%clk 0:02:58]}  cxd4 {[%clk 0:02:54]} 4. Nxd4 {[%clk 0:02:59]}  Nc6 {[%clk 0:02:53]} 5. Nc3 {[%clk 0:02:58]}  Qc7 {[%clk 0:02:54]} 6. Be3 {[%clk 0:02:57]}  a6 {[%clk 0:02:54]} 7. f4 {[%clk 0:02:55]}  b5 {[%clk 0:02:53]} 8. Be2 {[%clk 0:02:22]}  Bb7 {[%clk 0:02:48]} 9. O-O {[%clk 0:02:20]}  Rc8 {[%clk 0:02:46]} 10. f5 {[%clk 0:02:15]}  Nf6 {[%clk 0:02:09]} 11. Bf4 {[%clk 0:01:43]}  Qb6 {[%clk 0:01:23]} 12. fxe6 {[%clk 0:01:43]}  dxe6 {[%clk 0:00:51]} 13. e5 {[%clk 0:01:24]}  Nd7 {[%clk 0:00:31]} 14. Be3 {[%clk 0:01:11]}  Bc5 {[%clk 0:00:31]} 15. Rf4 {[%clk 0:00:21]}  Ndxe5 {[%clk 0:00:22]} 16. Ne4 {[%clk 0:00:15]}  Nxd4 {[%clk 0:00:18]} 17. Nxc5 {[%clk 0:00:11]}  Nxe2+ {[%clk 0:00:16]} 18. Qxe2 {[%clk 0:00:07]}  O-O {[%clk 0:00:15]} 19. Qh5 {[%clk 0:00:06]}  Rxc5 {[%clk 0:00:10]} 20. b4 {[%clk 0:00:04]}  Nf3+ {[%clk 0:00:05]} 21. gxf3 {[%clk 0:00:05]}  Rxh5 {[%clk 0:00:04]} 22. Bxb6 {[%clk 0:00:06]}  Rg5+ {[%clk 0:00:04]} 23. Kf2 {[%clk 0:00:06]}  Rc8 {[%clk 0:00:03]} 24. Rc1 {[%clk 0:00:05]}  Rf5 {[%clk 0:00:03]} 25. Rxf5 {[%clk 0:00:05]}  exf5 {[%clk 0:00:04]} 26. Bc5 {[%clk 0:00:05]}  g6 {[%clk 0:00:04]} 27. Re1 {[%clk 0:00:05]}  Bd5 {[%clk 0:00:05]} 28. Re7 {[%clk 0:00:05]}  Kg7 {[%clk 0:00:05]} 29. a3 {[%clk 0:00:05]}  Kg8 {[%clk 0:00:06]} 30. Ra7 {[%clk 0:00:05]}  h5 {[%clk 0:00:06]} 31. c3 {[%clk 0:00:05]}  Bc4 {[%clk 0:00:07]} 32. Rxa6 {[%clk 0:00:06]}  Re8 {[%clk 0:00:07]} 33. h4 {[%clk 0:00:05]}  Re2+ {[%clk 0:00:08]} 34. Kg3 {[%clk 0:00:04]}  Rc2 {[%clk 0:00:09]} 35. Bd4 {[%clk 0:00:04]}  Rc1 {[%clk 0:00:09]} 36. Ra8+ {[%clk 0:00:04]}  Kh7 {[%clk 0:00:09]} 37. Rh8# {[%clk 0:00:05]} 1-0


[Site "https://www.chess.com"]

[Event "Titled Tuesday Blitz November 14 Late 2023"]
[White "Esquivel Golcher, Luis Enrique"]
[Black "Sreyas Payyappat"]
[WhiteFideId "6600174"]
[BlackFideId "46674969"]
[WhiteElo "2364"]
[BlackElo "2494"]
[Result "1-0"]
[Round "5"]
[TimeControl "180+1"]
[Date "2023.11.14"]
[WhiteClock "0:00:15"]
[BlackClock "0:00:17"]
[Board "105"]

1. e4 {[%clk 0:03:00]}  c6 {[%clk 0:02:59]} 2. d4 {[%clk 0:02:59]}  d5 {[%clk 0:03:00]} 3. f3 {[%clk 0:03:00]}  Qb6 {[%clk 0:02:49]} 4. Nc3 {[%clk 0:02:54]}  dxe4 {[%clk 0:02:48]} 5. fxe4 {[%clk 0:02:52]}  e5 {[%clk 0:02:48]} 6. Nf3 {[%clk 0:02:46]}  exd4 {[%clk 0:02:47]} 7. Qxd4 {[%clk 0:02:44]}  Qxd4 {[%clk 0:02:42]} 8. Nxd4 {[%clk 0:02:45]}  Nf6 {[%clk 0:02:42]} 9. e5 {[%clk 0:02:38]}  Ng4 {[%clk 0:02:40]} 10. Bf4 {[%clk 0:02:34]}  Bc5 {[%clk 0:02:32]} 11. Rd1 {[%clk 0:02:29]}  O-O {[%clk 0:02:11]} 12. Ne4 {[%clk 0:02:17]}  Bxd4 {[%clk 0:02:05]} 13. Rxd4 {[%clk 0:02:18]}  Bf5 {[%clk 0:02:05]} 14. Nd6 {[%clk 0:02:07]}  Be6 {[%clk 0:01:56]} 15. Bd3 {[%clk 0:01:59]}  Nd7 {[%clk 0:01:53]} 16. O-O {[%clk 0:01:52]}  Ngxe5 {[%clk 0:01:50]} 17. Be4 {[%clk 0:01:36]}  f6 {[%clk 0:01:42]} 18. Nxb7 {[%clk 0:01:34]}  Rab8 {[%clk 0:01:38]} 19. Bxe5 {[%clk 0:01:31]}  Nxe5 {[%clk 0:01:37]} 20. Nc5 {[%clk 0:01:27]}  Bd5 {[%clk 0:01:31]} 21. b4 {[%clk 0:01:25]}  Rfd8 {[%clk 0:01:20]} 22. Rfd1 {[%clk 0:01:21]}  Nf7 {[%clk 0:01:11]} 23. Bxd5 {[%clk 0:01:09]}  Rxd5 {[%clk 0:01:12]} 24. Rxd5 {[%clk 0:01:08]}  cxd5 {[%clk 0:01:13]} 25. c3 {[%clk 0:01:04]}  Rd8 {[%clk 0:01:13]} 26. Na6 {[%clk 0:00:53]}  Rd7 {[%clk 0:01:01]} 27. Nc5 {[%clk 0:00:50]}  Rd8 {[%clk 0:01:00]} 28. a4 {[%clk 0:00:47]}  Ne5 {[%clk 0:00:58]} 29. Ne6 {[%clk 0:00:43]}  Rd6 {[%clk 0:00:49]} 30. Nf4 {[%clk 0:00:40]}  d4 {[%clk 0:00:37]} 31. Rxd4 {[%clk 0:00:40]}  Rxd4 {[%clk 0:00:36]} 32. cxd4 {[%clk 0:00:40]}  Nc6 {[%clk 0:00:37]} 33. Nd3 {[%clk 0:00:31]}  Nxd4 {[%clk 0:00:36]} 34. Kf2 {[%clk 0:00:30]}  Kf7 {[%clk 0:00:35]} 35. Ke3 {[%clk 0:00:28]}  Nf5+ {[%clk 0:00:34]} 36. Ke4 {[%clk 0:00:22]}  g6 {[%clk 0:00:33]} 37. g4 {[%clk 0:00:20]}  Ne7 {[%clk 0:00:31]} 38. Kd4 {[%clk 0:00:19]}  Ke6 {[%clk 0:00:28]} 39. Kc5 {[%clk 0:00:18]}  f5 {[%clk 0:00:26]} 40. h3 {[%clk 0:00:17]}  h5 {[%clk 0:00:22]} 41. gxf5+ {[%clk 0:00:16]}  Kxf5 {[%clk 0:00:20]} 42. b5 {[%clk 0:00:16]}  g5 {[%clk 0:00:19]} 43. a5 {[%clk 0:00:16]}  g4 {[%clk 0:00:18]} 44. hxg4+ {[%clk 0:00:16]}  hxg4 {[%clk 0:00:19]} 45. b6 {[%clk 0:00:16]}  axb6+ {[%clk 0:00:20]} 46. axb6 {[%clk 0:00:16]}  g3 {[%clk 0:00:20]} 47. Ne1 {[%clk 0:00:16]}  Kf4 {[%clk 0:00:16]} 48. b7 {[%clk 0:00:16]}  Ng6 {[%clk 0:00:16]} 49. b8=Q+ {[%clk 0:00:15]}  Ne5 {[%clk 0:00:17]} 1-0


[Site "https://www.chess.com"]

[Event "Titled Tuesday Blitz November 14 Late 2023"]
[White "chessjazda"]
[Black "Urbina Perez, Juan Antonio"]
[BlackFideId "2217368"]
[WhiteElo "2337"]
[BlackElo "2493"]
[Result "1-0"]
[Round "5"]
[TimeControl "180+1"]
[Date "2023.11.14"]
[WhiteClock "0:00:09"]
[BlackClock "0:00:05"]
[Board "106"]

1. b3 {[%clk 0:02:57]}  e5 {[%clk 0:02:57]} 2. Bb2 {[%clk 0:02:58]}  Nc6 {[%clk 0:02:57]} 3. c4 {[%clk 0:02:57]}  Nf6 {[%clk 0:02:56]} 4. g3 {[%clk 0:02:56]}  d5 {[%clk 0:02:55]} 5. cxd5 {[%clk 0:02:56]}  Nxd5 {[%clk 0:02:55]} 6. Nc3 {[%clk 0:02:56]}  Be6 {[%clk 0:02:54]} 7. Bg2 {[%clk 0:02:56]}  Be7 {[%clk 0:02:50]} 8. Nf3 {[%clk 0:02:55]}  O-O {[%clk 0:02:48]} 9. O-O {[%clk 0:02:54]}  Re8 {[%clk 0:02:47]} 10. Nxd5 {[%clk 0:02:50]}  Bxd5 {[%clk 0:02:44]} 11. d3 {[%clk 0:02:41]}  Qd7 {[%clk 0:02:28]} 12. Rc1 {[%clk 0:02:39]}  Rad8 {[%clk 0:02:26]} 13. Qc2 {[%clk 0:02:26]}  Rc8 {[%clk 0:02:17]} 14. Rfe1 {[%clk 0:02:21]}  Bb4 {[%clk 0:02:12]} 15. Red1 {[%clk 0:02:21]}  Nd4 {[%clk 0:02:03]} 16. Nxd4 {[%clk 0:02:18]}  Bxg2 {[%clk 0:01:59]} 17. Kxg2 {[%clk 0:02:13]}  exd4 {[%clk 0:01:58]} 18. a3 {[%clk 0:02:09]}  Bd6 {[%clk 0:01:53]} 19. b4 {[%clk 0:02:01]}  Qe6 {[%clk 0:01:45]} 20. Re1 {[%clk 0:01:59]}  Qd5+ {[%clk 0:01:45]} 21. Kg1 {[%clk 0:01:59]}  Re6 {[%clk 0:01:45]} 22. Qc4 {[%clk 0:01:59]}  Qh5 {[%clk 0:01:38]} 23. Qxd4 {[%clk 0:01:51]}  Be5 {[%clk 0:01:09]} 24. Qd7 {[%clk 0:01:41]}  Rce8 {[%clk 0:01:09]} 25. Bxe5 {[%clk 0:01:38]}  Rxe5 {[%clk 0:01:09]} 26. Rxc7 {[%clk 0:01:35]}  h6 {[%clk 0:01:09]} 27. e3 {[%clk 0:01:27]}  Qf3 {[%clk 0:01:07]} 28. Rc8 {[%clk 0:01:13]}  Rxc8 {[%clk 0:01:02]} 29. Qxc8+ {[%clk 0:01:14]}  Kh7 {[%clk 0:01:03]} 30. Qc2 {[%clk 0:01:13]}  Rh5 {[%clk 0:01:01]} 31. d4+ {[%clk 0:01:11]}  g6 {[%clk 0:01:01]} 32. Qe2 {[%clk 0:01:09]}  Qf5 {[%clk 0:00:53]} 33. Rc1 {[%clk 0:01:06]}  Qh3 {[%clk 0:00:48]} 34. f3 {[%clk 0:01:04]}  Qe6 {[%clk 0:00:40]} 35. e4 {[%clk 0:00:58]}  a5 {[%clk 0:00:37]} 36. Rc5 {[%clk 0:00:51]}  axb4 {[%clk 0:00:33]} 37. Rxh5 {[%clk 0:00:46]}  gxh5 {[%clk 0:00:34]} 38. axb4 {[%clk 0:00:46]}  Qb3 {[%clk 0:00:34]} 39. e5 {[%clk 0:00:42]}  Qxb4 {[%clk 0:00:32]} 40. Qe4+ {[%clk 0:00:42]}  Kg7 {[%clk 0:00:31]} 41. d5 {[%clk 0:00:38]}  Qc5+ {[%clk 0:00:31]} 42. Kg2 {[%clk 0:00:37]}  b5 {[%clk 0:00:31]} 43. e6 {[%clk 0:00:37]}  fxe6 {[%clk 0:00:31]} 44. dxe6 {[%clk 0:00:38]}  Qe7 {[%clk 0:00:27]} 45. Qe5+ {[%clk 0:00:36]}  Kh7 {[%clk 0:00:25]} 46. Qf5+ {[%clk 0:00:35]}  Kg7 {[%clk 0:00:25]} 47. Qe5+ {[%clk 0:00:35]}  Kh7 {[%clk 0:00:25]} 48. f4 {[%clk 0:00:35]}  b4 {[%clk 0:00:22]} 49. f5 {[%clk 0:00:35]}  Qb7+ {[%clk 0:00:21]} 50. Kh3 {[%clk 0:00:34]}  Qf3 {[%clk 0:00:21]} 51. e7 {[%clk 0:00:27]}  Qf1+ {[%clk 0:00:16]} 52. Kh4 {[%clk 0:00:27]}  Qf3 {[%clk 0:00:17]} 53. Qf4 {[%clk 0:00:17]}  Qg2 {[%clk 0:00:14]} 54. h3 {[%clk 0:00:12]}  Qe2 {[%clk 0:00:14]} 55. f6 {[%clk 0:00:12]}  b3 {[%clk 0:00:13]} 56. Qf5+ {[%clk 0:00:10]}  Kh8 {[%clk 0:00:13]} 57. f7 {[%clk 0:00:10]}  Qxe7+ {[%clk 0:00:13]} 58. Kxh5 {[%clk 0:00:11]}  Qf8 {[%clk 0:00:08]} 59. Qf6+ {[%clk 0:00:10]}  Kh7 {[%clk 0:00:09]} 60. Qg6+ {[%clk 0:00:10]}  Kh8 {[%clk 0:00:09]} 61. Qxh6+ {[%clk 0:00:10]}  Qxh6+ {[%clk 0:00:05]} 62. Kxh6 {[%clk 0:00:10]}  b2 {[%clk 0:00:05]} 63. f8=R# {[%clk 0:00:09]} 1-0


[Site "https://www.chess.com"]

[Event "Titled Tuesday Blitz November 14 Late 2023"]
[White "rikchessmx"]
[Black "Kanyamarala, Trisha"]
[BlackFideId "45004722"]
[WhiteElo "2329"]
[BlackElo "2491"]
[Result "0-1"]
[Round "5"]
[TimeControl "180+1"]
[Date "2023.11.14"]
[WhiteClock "0:02:08"]
[BlackClock "0:01:28"]
[Board "108"]

1. e4 {[%clk 0:02:57]}  c5 {[%clk 0:02:56]} 2. Nf3 {[%clk 0:02:56]}  d6 {[%clk 0:02:54]} 3. d4 {[%clk 0:02:56]}  cxd4 {[%clk 0:02:54]} 4. Nxd4 {[%clk 0:02:56]}  Nf6 {[%clk 0:02:54]} 5. Nc3 {[%clk 0:02:57]}  Nc6 {[%clk 0:02:55]} 6. Nb3 {[%clk 0:02:52]}  e5 {[%clk 0:02:52]} 7. Bd3 {[%clk 0:02:51]}  Be6 {[%clk 0:02:49]} 8. O-O {[%clk 0:02:50]}  Be7 {[%clk 0:02:49]} 9. f4 {[%clk 0:02:50]}  O-O {[%clk 0:02:42]} 10. f5 {[%clk 0:02:49]}  Bxb3 {[%clk 0:02:41]} 11. axb3 {[%clk 0:02:49]}  d5 {[%clk 0:02:35]} 12. Qf3 {[%clk 0:02:47]}  Nd4 {[%clk 0:02:29]} 13. Qf2 {[%clk 0:02:45]}  Bc5 {[%clk 0:02:24]} 14. Kh1 {[%clk 0:02:41]}  Nxb3 {[%clk 0:02:19]} 15. Be3 {[%clk 0:02:41]}  Ng4 {[%clk 0:02:12]} 16. Bxc5 {[%clk 0:02:37]}  Nxf2+ {[%clk 0:02:11]} 17. Rxf2 {[%clk 0:02:37]}  Nxa1 {[%clk 0:02:10]} 18. Rf1 {[%clk 0:02:36]}  dxe4 {[%clk 0:02:06]} 19. Nxe4 {[%clk 0:02:33]}  Nb3 {[%clk 0:02:03]} 20. Bxf8 {[%clk 0:02:32]}  Kxf8 {[%clk 0:02:03]} 21. f6 {[%clk 0:02:30]}  g6 {[%clk 0:01:57]} 22. Ng5 {[%clk 0:02:21]}  h6 {[%clk 0:01:51]} 23. Nxf7 {[%clk 0:02:18]}  Kxf7 {[%clk 0:01:45]} 24. Bc4+ {[%clk 0:02:18]}  Kf8 {[%clk 0:01:45]} 25. Bxb3 {[%clk 0:02:17]}  Qd6 {[%clk 0:01:41]} 26. f7 {[%clk 0:02:17]}  Rd8 {[%clk 0:01:39]} 27. h3 {[%clk 0:02:16]}  Qa6 {[%clk 0:01:37]} 28. Kg1 {[%clk 0:02:14]}  Qb6+ {[%clk 0:01:34]} 29. Kh2 {[%clk 0:02:14]}  Rd2 {[%clk 0:01:33]} 30. Rf3 {[%clk 0:02:11]}  Qc6 {[%clk 0:01:29]} 31. Rc3 {[%clk 0:02:08]}  Qxg2# {[%clk 0:01:28]} 0-1


[Site "https://www.chess.com"]